[Event "German Rapid Championship 2022"]
[Site "Goettingen"]
[Date "2022.09.24"]
[Round "3.6"]
[White "Feuerstack, Aljoscha"]
[Black "Woelk, Tom-Frederic"]
[Result "1/2-1/2"]
[ECO "B22"]
[WhiteElo "2464"]
[BlackElo "2289"]
[Annotator "TA"]
[PlyCount "218"]
[EventDate "2022.09.24"]
[EventType "swiss"]
[EventCountry "GER"]
[SourceTitle "playchess.com"]
[Source "ChessBase"]
[SourceQuality "1"]
[TimeControl "900+10"]

{[%evp 12,218,22,15,43,31,40,24,31,29,31,36,27,32,21,24,24,32,26,25,43,5,53,44,62,16,19,20,38,44,35,0,0,0,37,24,27,8,12,0,0,0,0,0,0,0,0,0,0,0,0,0,0,0,10,0,0,0,0,0,17,16,53,44,122,35,36,0,102,54,114,116,78,20,31,0,0,0,0,0,0,0,0,0,0,0,0,0,0,0,0,0,0,0,0,0,2,0,0,0,3,0,0,0,0,0,0,0,0,0,0,0,0,0,0,0,0,0,0,0,0,0,0,0,0,0,0,22,0,0,0,0,75,75,75,91,262,261,283,274,523,516,595,12,13,27,326,136,12836,6007,12837,1911,12837,12838,12837,3284,12847,12847,27999,27999,27999,27999,27999,27999,27999,27999,27999,27999,27999,27999,27999,27999,27999,27999,27999,27999,27999,27999,27999,27999,27999,27999,27999,27999,27999,27999,27999,27999,27999,27999,27999,27999,27999,27999,27999,27999,27999,0,0,0,0,0,0,0,0,0,0,0,0]} 1. e4 {[%emt 0:00:03]} c5 {[%emt 0:00:05]} 2. c3 {[%emt 0:00:02]} d5 {[%emt 0:00:51]} 3. exd5 {[%emt 0:00:02]} Qxd5 {[%emt 0:00:02]} 4. d4 {[%emt 0:00:01]} Nf6 {[%emt 0:00:04]} 5. Nf3 {[%emt 0:00:02]} e6 {[%emt 0:00:10]} 6. Na3 {[%emt 0:00:23]} a6 {[%emt 0:00:34]} 7. Nc4 {[%emt 0:00:23] Strongly threatening Nb6.} Qd8 {[%emt 0:00:06] Inhibits Nb6. B22: Sicilian: 2 c3.} 8. Be2 {[%emt 0:00:28]} Nc6 {[%emt 0:00:11]} 9. O-O {[%emt 0:01:05]} (9. Nfe5 {looks sharper.} Nxe5 10. dxe5 Qxd1+ 11. Kxd1 Nd5 12. a4) 9... cxd4 {[%emt 0:00:03] White has an edge.} 10. Nxd4 {[%emt 0:00:02] has lost popularity (10.cxd4).} Nxd4 {[%emt 0:00:26]} 11. Qxd4 {[%emt 0:00:05]} Qxd4 {[%emt 0:00:29]} 12. cxd4 {[%emt 0:00:03]} Bd7 {[%emt 0:01:27]} 13. Bf3 {[%emt 0:03:36]} Bc6 {[%emt 0:02:38]} 14. Bxc6+ {[%emt 0:00:03]} bxc6 {[%emt 0:00:01]} 15. Be3 {[%emt 0:00:57]} Nd5 {[%emt 0:00:16]} 16. Rac1 {[%emt 0:01:10]} Rc8 {[%emt 0:00:08]} (16... a5 $11 {deserves consideration.}) 17. Ne5 {[%emt 0:00:51][%cal Bc4e5,Be5d3,Bd3f4][%mdl 32]} c5 {[%emt 0:00:25] [#]} 18. dxc5 $146 {[%emt 0:04:16]} (18. Rc2 $14) ({Predecessor:} 18. Rc2 Bd6 19. Nd3 c4 20. Rfc1 Nb6 21. Ne5 Ke7 22. Nxc4 Nxc4 23. Rxc4 Rxc4 24. Rxc4 {1-0 (40) Jones,G (2647)-Madebrink,L (2212) Lund 2015}) 18... Nxe3 $11 {[%emt 0:00:14]} 19. fxe3 {[%emt 0:00:02]} Rxc5 {[%emt 0:01:01]} 20. Nd3 {[%emt 0:00:16]} Rd5 {[%emt 0:01:14]} 21. Nf4 {[%emt 0:01:06]} Rc5 {[%emt 0:00:08]} 22. Nd3 {[%emt 0:00:27]} Rd5 {[%emt 0:00:03]} 23. Rfd1 {[%emt 0:00:32]} Be7 {[%emt 0:00:13]} 24. Rc8+ {[%emt 0:00:07]} Bd8 {[%emt 0:00:28]} 25. Ra8 {[%emt 0:00:26]} a5 {[%emt 0:00:03]} 26. Kf1 {[%emt 0:01:22]} O-O {[%emt 0:00:08]} 27. Nf2 {[%emt 0:00:19]} Rxd1+ {[%emt 0:00:58]} 28. Nxd1 {[%emt 0:00:01][%mdl 4096] Endgame KRB-KRN} Bc7 {[%emt 0:00:01][%csl LRa8,LRh2]} 29. Ra7 {[%emt 0:00:27]} Rc8 {[%emt 0:00:53]} 30. Ke2 {[%emt 0:00:19]} g5 {[%emt 0:00:12]} 31. h3 {[%emt 0:00:10]} h6 {[%emt 0:00:24]} 32. b3 {[%emt 0:00:20]} Kg7 {[%emt 0:00:21]} 33. Ra6 {[%emt 0:00:09]} Bd8 {[%emt 0:00:07]} 34. Kd2 {[%emt 0:00:24] Inhibits Rc2+.} Rc5 {[%emt 0:00:03]} 35. Nb2 {[%emt 0:00:10]} Rd5+ {[%emt 0:01:00]} 36. Ke2 {[%emt 0:00:02]} Kf6 {[%emt 0:00:39]} 37. Nc4 {[%emt 0:00:03]} Rc5 {[%emt 0:00:07]} (37... h5 $14) 38. Kd3 {[%emt 0:00:09]} (38. g4 $16) 38... Rd5+ $14 {[%emt 0:00:11]} 39. Ke2 {[%emt 0:00:03]} (39. Ke4 $14) 39... Rc5 $16 {[%emt 0:00:01]} 40. Ra7 {[%emt 0:00:23]} (40. g4 $16) 40... Kg6 {[%emt 0:00:32]} (40... h5 $14) 41. Ra8 $1 {[%emt 0:00:27] White is more active.} Bc7 {[%emt 0:00:12]} 42. Rc8 {[%emt 0:00:03]} (42. a4 $16) 42... a4 $1 $11 {[%emt 0:00:10]} 43. e4 {[%emt 0:00:20]} axb3 {[%emt 0:00:02]} 44. axb3 {[%emt 0:00:01]} f5 $1 {[%emt 0:00:03]} 45. Kd3 {[%emt 0:00:05]} fxe4+ {[%emt 0:00:23]} 46. Kxe4 {[%emt 0:00:01]} Kf6 {[%emt 0:00:01]} 47. Rf8+ {[%emt 0:00:24]} Kg7 {[%emt 0:00:08]} 48. Rc8 {[%emt 0:00:01]} Kf6 {[%emt 0:00:01]} 49. g4 {[%emt 0:00:30]} Kf7 {[%emt 0:00:16]} 50. Rh8 {[%emt 0:00:14]} Kg7 {[%emt 0:00:06]} 51. Rc8 {[%emt 0:00:01]} Kf7 {[%emt 0:00:01]} 52. Kf3 {[%emt 0:00:08]} Kf6 {[%emt 0:00:14]} 53. Ke2 {[%emt 0:00:03]} Kf7 {[%emt 0:00:12]} 54. Rh8 {[%emt 0:00:03]} Kg7 {[%emt 0:00:01]} 55. Rc8 {[%emt 0:00:01]} Kf7 {[%emt 0:00:00]} 56. Ne3 {[%emt 0:00:30]} Ke7 {[%emt 0:00:44]} 57. b4 {[%emt 0:00:17]} Rc6 {[%emt 0:00:10]} 58. Rh8 {[%emt 0:00:16]} Bf4 {[%emt 0:00:29]} 59. Rxh6 {[%emt 0:00:25]} Rc3 {[%emt 0:00:12]} 60. Ng2 {[%emt 0:00:12]} Rc2+ {[%emt 0:00:05]} 61. Kf3 {[%emt 0:00:03]} Bd6 {[%emt 0:00:09]} 62. Rh7+ {[%emt 0:00:13]} Kf6 {[%emt 0:00:02]} 63. Rh6+ {[%emt 0:00:03]} Ke7 {[%emt 0:00:07]} 64. Rh5 {[%emt 0:00:08]} Bxb4 {[%emt 0:00:10]} 65. Rxg5 {[%emt 0:00:07]} Rc3+ {[%emt 0:00:01]} 66. Ne3 {[%emt 0:00:06]} Bc5 {[%emt 0:00:01]} 67. Re5 {[%emt 0:00:01]} Kd6 {[%emt 0:00:01]} (67... Bd4 $5 68. Re4 $8 e5 $16) 68. Re4 {[%emt 0:00:03]} e5 {[%emt 0:00:17]} 69. h4 {[%emt 0:00:12]} Ke6 {[%emt 0:00:01]} 70. g5 {[%emt 0:00:09] And now h5 would win.} Bd4 {[%emt 0:00:03]} 71. Ke2 {[%emt 0:00:41] aiming for g6.} Ra3 {[%emt 0:00:40] [#]} (71... Bxe3 $11 72. Rxe3 Rc4) 72. Nc2 $1 $16 {[%emt 0:00:05][%csl LRa3,LRd4]} Ra2 {[%emt 0:00:03]} 73. Kd3 {[%emt 0:00:01]} Bc5 $2 {[%emt 0:00:08] [#]} (73... Bb6 $16 {was worth a try.}) 74. Rc4 $1 $18 {[%emt 0:00:05]} Be7 {[%emt 0:00:06][%cal Oe7g5]} 75. Ke4 {[%emt 0:00:09]} Rb2 $2 {[%emt 0:00:09]} (75... Ra8 {was called for.} 76. Rc6+ Kd7) 76. Ne3 {[%emt 0:00:09]} Rh2 {[%emt 0:00:06]} 77. Kf3 $2 {[%emt 0:00:12]} (77. Nf5 $18) 77... Rh3+ $11 {[%emt 0:00:06]} 78. Kf2 {[%emt 0:00:07]} Bd8 $2 {[%emt 0:00:04][%mdl 8192]} (78... Kf7 $1 $11 {and Black is okay.}) 79. Rc6+ {[%emt 0:00:16]} (79. Ra4 $18) 79... Kf7 $2 {[%emt 0:00:53][%mdl 8192]} (79... Kd7 $16 80. Rh6 e4) 80. Nf5 {[%emt 0:00:07]} (80. g6+ $142 Kf8 81. Rc8) 80... e4 {[%emt 0:00:10]} 81. Kg2 {[%emt 0:00:02]} Rf3 {[%emt 0:00:04]} 82. g6+ {[%emt 0:00:32]} Kg8 {[%emt 0:00:01]} 83. Rc5 {[%emt 0:00:04]} Rxf5 {[%emt 0:01:51]} 84. Rxf5 {[%emt 0:00:02]} Bxh4 $18 {[%emt 0:00:00] KR-KB} 85. Rf7 $2 {[%emt 0:00:24]} (85. Rf4 Be7 86. Rxe4) 85... e3 {[%emt 0:00:28]} 86. Kf3 {[%emt 0:00:00]} Bg5 {[%emt 0:00:02]} 87. Ke2 {[%emt 0:00:01]} Bh6 {[%emt 0:00:03]} 88. Kd3 $2 {[%emt 0:00:01]} (88. Rd7 Bg5 89. Ra7) 88... Bg5 {[%emt 0:00:01]} 89. Ke2 Bh6 90. Rh7 $2 {[%emt 0:00:10]} (90. Rd7 Kf8 91. Rb7) 90... Bg5 {[%emt 0:00:05]} 91. Kf3 $2 {[%emt 0:00:01]} (91. Rf7 Kh8 92. Kf3) 91... Kf8 {[%emt 0:00:43]} 92. Rb7 $2 {[%emt 0:00:20]} (92. Ke2 Kg8 93. Rb7) 92... Kg8 {[%emt 0:00:04]} 93. Rf7 $2 {[%emt 0:00:02]} (93. Ke2 Bf4 94. Rf7) 93... Bh6 {[%emt 0:01:01]} 94. Kg4 $2 {[%emt 0:00:03]} (94. Ke2 Bg5 95. Kf3) 94... Bf8 {[%emt 0:00:17]} 95. Rf5 $2 {[%emt 0:00:27]} (95. Kf3 Bh6 96. Re7) 95... Kg7 $11 {[%emt 0:01:05]} 96. Kh5 $2 {[%emt 0:00:10]} (96. Rf7+ Kg8 97. Kf3) 96... Bd6 {[%emt 0:00:07]} 97. Rf7+ {[%emt 0:00:04]} Kg8 {[%emt 0:00:01]} 98. Rf6 $2 {[%emt 0:00:07]} (98. Rd7 Bf8 99. Rd8) 98... Bc5 {[%emt 0:00:03]} 99. Rc6 $2 {[%emt 0:00:08]} (99. Re6 Kg7 100. Re4) 99... Bd4 {[%emt 0:00:06]} 100. Rd6 $2 {[%emt 0:00:13]} (100. Re6 Bc5 101. Re5) 100... Bc5 {[%emt 0:00:04]} 101. Rd5 $2 {[%emt 0:00:11]} (101. Re6 Kg7 102. Re5) 101... Bb4 {[%emt 0:00:56]} 102. Rd8+ $2 {[%emt 0:00:24]} ({White should try} 102. Re5 Bd2 103. Re7) 102... Kg7 {[%emt 0:00:07]} 103. Rd7+ {[%emt 0:00:02]} Kg8 {[%emt 0:00:04]} 104. g7 $2 {[%emt 0:00:09]} ({White should play} 104. Rd8+ Bf8 105. Re8) 104... Kh7 $1 {[%emt 0:00:56] The position is equal.} 105. g8=Q+ {[%emt 0:00:42]} Kxg8 {[%emt 0:00:02]} 106. Kg6 {[%emt 0:00:02]} Kf8 $1 {[%emt 0:00:13]} 107. Rf7+ {[%emt 0:00:13]} Ke8 {[%emt 0:00:06] Hoping for ...e2.} 108. Rf3 {[%emt 0:00:02]} Bc5 {[%emt 0:00:04] White must now prevent ...e2.} 109. Rxe3+ {[%emt 0:00:02]} Bxe3 {Black defended with fortune.  Weighted Error Value: White=0.11 (very precise) /Black=0.06 (flawless)} 1/2-1/2

[Event "German Rapid Championship 2022"]
[Site "Goettingen"]
[Date "2022.09.24"]
[Round "3.7"]
[White "Spiess, Gunter"]
[Black "Cofmann, Veaceslav"]
[Result "1-0"]
[ECO "A56"]
[WhiteElo "2384"]
[BlackElo "2250"]
[Annotator "TA"]
[PlyCount "71"]
[EventDate "2022.09.24"]
[EventType "swiss"]
[EventCountry "GER"]
[SourceTitle "playchess.com"]
[Source "ChessBase"]
[SourceQuality "1"]
[TimeControl "900+10"]

{[%evp 13,71,56,70,66,76,70,74,70,64,73,56,50,76,68,75,74,85,60,143,143,156,146,178,159,187,146,221,239,269,234,383,384,382,326,298,277,563,570,518,535,525,518,743,731,820,740,756,710,753,755,755,720,1014,1009,1017,999,1479,1431,1565,1541]} 1. d4 {[%emt 0:00:00]} Nf6 {[%emt 0:00:03]} 2. c4 {[%emt 0:00:01]} c5 {[%emt 0:00:01]} 3. Nf3 {[%emt 0:00:05]} e6 {[%emt 0:00:11]} 4. d5 {[%emt 0:00:10]} exd5 {[%emt 0:00:02]} 5. cxd5 {[%emt 0:00:01]} Bd6 {[%emt 0:00:01]} 6. Nc3 {[%emt 0:00:05]} O-O {[%emt 0:00:05]} 7. Bg5 {[%emt 0:00:02]} Re8 {[%emt 0:00:05]} 8. e3 {[%emt 0:00:02][%cal Be2e3,Be3e4][%mdl 32] A60: Modern Benoni: Early Divergences.} Bf8 {[%emt 0:00:02]} 9. Bd3 {[%emt 0:00:12]} d6 {[%emt 0:00:04]} 10. h3 {[%emt 0:00:21] White is better.} Nbd7 {[%emt 0:00:05]} 11. O-O {[%emt 0:00:08] White has more active pieces.} a6 {[%emt 0:00:16]} 12. a4 {[%emt 0:00:01] Prevents b5.} g6 {[%emt 0:00:20]} 13. e4 {[%emt 0:00:08] White leaves nothing to chance now.} Bg7 {[%emt 0:00:24] [#]} 14. Nd2 $146 {[%emt 0:03:56]} ({Predecessor:} 14. Qd2 Rb8 15. Rab1 Qc7 16. b4 c4 17. Bc2 b5 18. axb5 axb5 19. Nd4 Ba6 20. Kh1 {0-1 (64) Albayrak,E (1707)-Oztekin,K (1936) Konya 2018}) 14... h6 {[%emt 0:00:19]} 15. Bh4 {[%emt 0:00:13]} Qc7 {[%emt 0:01:55]} (15... Ne5 $14 16. Be2 g5) 16. f4 $16 {[%emt 0:00:26]} Rb8 {[%emt 0:00:35]} 17. Kh1 {[%emt 0:00:55]} Nh7 {[%emt 0:00:41]} 18. Bg3 {[%emt 0:02:26]} b6 {[%emt 0:01:03]} 19. Qe2 {[%emt 0:00:55]} Ra8 {[%emt 0:00:52]} (19... Bb7 $16 {keeps fighting.} 20. Bxa6 Bxc3 21. bxc3 Bxd5) 20. Nc4 $18 {[%emt 0:00:38]} Qb8 {[%emt 0:01:13]} 21. Qf3 {[%emt 0:01:10]} Bb7 {[%emt 0:01:06]} (21... Ra7 $142 22. e5 dxe5) 22. f5 {[%emt 0:00:31] [#] fxg6 is the strong threat.} (22. e5 dxe5 23. Rae1 (23. fxe5 Ng5 $16) 23... e4 24. Bxe4 (24. Rxe4 Rxe4 25. Bxe4 f5 $16) 24... f5 $16) 22... Ng5 {[%emt 0:00:11]} 23. Qg4 {[%emt 0:00:37] aiming for fxg6.} Nf6 {[%emt 0:00:37]} 24. Qh4 {[%emt 0:00:15] Black must now prevent fxg6.} ({Not} 24. Bxd6 Nxg4 25. Bxb8 b5 26. axb5 (26. hxg4 $2 bxc4 27. Bc7 cxd3 $19) 26... axb5 $14) 24... Ngh7 $2 {[%emt 0:00:39]} (24... Nf3 25. gxf3 g5) 25. fxg6 {[%emt 0:00:15] White is clearly winning.} fxg6 {[%emt 0:00:03]} 26. Bxd6 {[%emt 0:00:10]} Qd8 {[%emt 0:00:04]} 27. Bh2 {[%emt 0:00:43]} Bf8 {[%emt 0:01:24]} 28. Qg3 {[%emt 0:00:40]} g5 {[%emt 0:00:22]} 29. Rad1 {[%emt 0:00:41]} b5 {[%emt 0:00:26]} 30. axb5 {[%emt 0:00:20]} axb5 {[%emt 0:00:01]} 31. Nxb5 {[%emt 0:00:19]} Nxe4 {[%emt 0:00:02]} 32. Qf3 {[%emt 0:00:33] [#] Strongly threatening Qf7+.} Nhf6 {[%emt 0:01:35]} 33. Bxe4 {[%emt 0:00:45]} Rxe4 {[%emt 0:00:28]} 34. Ncd6 {[%emt 0:00:11][%cal Bc4d6,Bd6b7,Bb7d6][%mdl 32] Pair of Knights!} Rb4 {[%emt 0:00:55]} 35. Nxb7 {[%emt 0:00:08]} Qb6 {[%emt 0:00:04]} 36. N7d6 {[%emt 0:00:12] Weighted Error Value: White=0.12 (very precise) /Black=0.43} 1-0

[Event "German Rapid Championship 2022"]
[Site "Goettingen"]
[Date "2022.09.24"]
[Round "3.8"]
[White "Kopylov, Michael"]
[Black "Schenderowitsch, Michael"]
[Result "1/2-1/2"]
[ECO "A40"]
[WhiteElo "2371"]
[BlackElo "2292"]
[Annotator "TA"]
[PlyCount "58"]
[EventDate "2022.09.24"]
[EventType "swiss"]
[EventCountry "GER"]
[SourceTitle "playchess.com"]
[Source "ChessBase"]
[SourceQuality "1"]
[TimeControl "900+10"]

{[%evp 10,58,7,0,25,12,20,6,0,-16,34,-37,-27,-27,20,-17,-3,-99,-100,-87,-83,-110,-92,-109,-101,-206,-216,-187,-122,-134,-129,-125,-77,-103,-101,-98,-35,-35,-36,-32,-14,-46,-25,-24,0,-42,0,-27,0,-52,-34]} 1. d4 {[%emt 0:00:01]} e6 {[%emt 0:00:01]} 2. g3 {[%emt 0:00:03]} c5 {[%emt 0:00:10]} 3. Nf3 {[%emt 0:00:04]} b5 {[%emt 0:00:05]} 4. Bg2 {[%emt 0:01:37]} Bb7 {[%emt 0:00:01]} 5. O-O {[%emt 0:00:16]} Nf6 {[%emt 0:00:04]} 6. b3 {[%emt 0:00:41]} Na6 {[%emt 0:00:18] A46: 1 d4 Nf6 2 Nf3 e6: Torre, London and Colle Systems.} 7. Bb2 {[%emt 0:00:35]} Be7 {[%emt 0:00:03]} 8. Nbd2 {[%emt 0:00:19][%cal Oe2e4]} O-O {[%emt 0:00:09] The position is equal.} 9. c4 {[%emt 0:00:05]} b4 {[%emt 0:00:53] [#]} (9... bxc4 $11 10. Nxc4 d5) 10. d5 $146 {[%emt 0:01:25]} ({White should play} 10. e3 $14) ({Predecessor:} 10. dxc5 Nxc5 11. Ne5 Bxg2 12. Kxg2 Qb6 13. Nd3 Qb7+ 14. Kg1 Nfe4 15. Nxe4 Nxe4 16. f3 {½-½ (24) Vaculik,M (1893)-Borkovec,M (2188) Ceske Budejovice 2022}) 10... exd5 $15 {[%emt 0:00:06]} 11. Nh4 {[%emt 0:00:00]} Rb8 {[%emt 0:05:50]} (11... g6 {feels stronger.}) 12. cxd5 {[%emt 0:02:07]} (12. Nf5 $5 {[%cal Rc4d5]}) 12... Nxd5 {[%emt 0:00:22]} 13. Nc4 {[%emt 0:00:18]} (13. Nf5 $11) 13... Nc3 $17 {[%emt 0:01:52]} 14. Bxc3 {[%emt 0:00:28]} bxc3 {[%emt 0:00:17]} 15. Bxb7 {[%emt 0:01:53]} Rxb7 {[%emt 0:00:01]} 16. Qd5 {[%emt 0:04:05]} Rc7 {[%emt 0:01:39] [#] Hoping for ...Nb4.} 17. a3 {[%emt 0:00:05] Inhibits Nb4.} (17. Nf5 $17 {was worth a try.}) 17... Bxh4 $19 {[%emt 0:01:05]} 18. gxh4 {[%emt 0:00:01]} Qxh4 {[%emt 0:00:37]} (18... Rc6 $19 19. Ne5 Re6) 19. Rac1 $17 {[%emt 0:00:15][%cal Ba1c1,Bc1c3,Bc3e3,Be3e7][%mdl 32]} Qg4+ {[%emt 0:00:49]} 20. Kh1 {[%emt 0:00:01]} Qe6 {[%emt 0:00:01]} (20... Rc6 $142 21. Ne3 Qxe2) 21. Rfd1 {[%emt 0:00:09]} Qxe2 {[%emt 0:01:08]} 22. Rxc3 {[%emt 0:00:16] [#]} Qe6 {[%emt 0:00:41]} ({Much weaker is} 22... Qxf2 $6 23. Rf3 Qe2 24. Re3 $11) (22... Rc6 $1 $17 {...Rf6 is the strong threat.} 23. Qd2 Qe4+ 24. f3 Qh4 25. Qxd7 (25. Ne5 $2 Re6 $19) 25... Re6) 23. Re3 {[%emt 0:01:59]} Qxd5+ {[%emt 0:00:05]} (23... Qf6 {is more complex.} 24. Rf3 Qc6 25. Kg2 Qxd5 26. Rxd5 f6) 24. Rxd5 {[%emt 0:00:01]} Nb8 {[%emt 0:00:28]} 25. Re7 {[%emt 0:00:25]} Rb7 {[%emt 0:00:55]} 26. Re3 {[%emt 0:00:51]} Rc7 {[%emt 0:00:31]} 27. Re7 {[%emt 0:00:03]} Rb7 {[%emt 0:00:54]} 28. Re3 {[%emt 0:00:03]} Rc7 {[%emt 0:00:11]} 29. Re7 {[%emt 0:00:03]} g6 {White happily takes the draw.  Weighted Error Value: White=0.24 (precise) /Black=0.26 (precise)} 1/2-1/2

[Event "German Rapid Championship 2022"]
[Site "Goettingen"]
[Date "2022.09.24"]
[Round "3.9"]
[White "Reichmann, Hendrik"]
[Black "Serrer, Christoph"]
[Result "1/2-1/2"]
[ECO "A45"]
[WhiteElo "2307"]
[BlackElo "2251"]
[Annotator "TA"]
[PlyCount "102"]
[EventDate "2022.09.24"]
[EventType "swiss"]
[EventCountry "GER"]
[SourceTitle "playchess.com"]
[Source "ChessBase"]
[SourceQuality "1"]
[TimeControl "900+10"]

{[%evp 9,102,-7,-7,-40,-26,-48,0,-37,-26,-43,-38,-27,-37,-60,-59,-61,-50,-46,-21,-49,-12,-74,-75,-80,-41,-40,-49,-55,-17,-40,0,-19,0,0,0,0,0,0,0,0,41,40,43,31,52,38,37,12,15,16,25,20,228,129,104,37,22,10,20,0,4,0,37,56,12,0,35,56,231,222,267,254,291,281,278,283,265,247,233,0,0,0,0,0,0,0,0,0,0,0,0,0,0,0,0]} 1. d4 {[%emt 0:00:04]} Nf6 {[%emt 0:00:01]} 2. Bf4 {[%emt 0:00:12]} d5 {[%emt 0:00:13]} 3. Nc3 {[%emt 0:00:22]} a6 {[%emt 0:01:34]} 4. e3 {[%emt 0:00:17]} e6 {[%emt 0:00:42]} 5. g4 {[%emt 0:01:36]} Bb4 {[%emt 0:00:49]} 6. f3 {[%emt 0:03:22] Against Ne4. D00: 1 d4 d5: Unusual lines.} c5 {[%emt 0:00:10]} 7. Nge2 {[%emt 0:01:48]} Nc6 {[%emt 0:01:43] [#]} (7... cxd4 $15 {was preferrable.} 8. exd4 Nc6) 8. Qd2 $146 {[%emt 0:01:13]} (8. a3 $5 {[%cal Ra3b4]} Bxc3+ 9. Nxc3 $11) ({Predecessor:} 8. a3 Bxc3+ 9. Nxc3 Qb6 10. Na4 Qa5+ 11. c3 c4 12. b4 cxb3 13. Qxb3 Nd7 14. Bd6 {0-1 (35) Gelman,A (2403)-Lazavik,D (2472) Chess.com INT 2022}) 8... cxd4 {[%emt 0:01:48]} 9. exd4 {[%emt 0:00:05]} Bd7 {[%emt 0:00:47]} 10. a3 {[%emt 0:00:35]} Be7 {[%emt 0:00:26]} 11. h4 {[%emt 0:00:34]} Rc8 {[%emt 0:00:17]} 12. h5 {[%emt 0:00:33]} h6 {[%emt 0:00:18]} 13. Bg2 {[%emt 0:02:19]} Na7 {[%emt 0:04:55][%cal Bc6a7,Ba7b5,Bb5c3][%mdl 32]} 14. O-O {[%emt 0:00:48]} Nb5 {[%emt 0:00:12]} 15. Kh1 {[%emt 0:01:11]} (15. Nxb5 $11 Bxb5 16. Rfe1) 15... Nxc3 $17 {[%emt 0:00:21]} 16. Nxc3 {[%emt 0:00:05]} Bc6 {[%emt 0:00:33]} 17. Rfe1 {[%emt 0:00:12]} O-O {[%emt 0:00:21]} 18. Ne2 {[%emt 0:00:37]} Bd6 {[%emt 0:01:05]} 19. c3 {[%emt 0:00:16]} a5 {[%emt 0:00:11]} 20. Be5 {[%emt 0:00:30]} Bxe5 {[%emt 0:00:21]} 21. dxe5 {[%emt 0:00:01]} Nd7 {[%emt 0:00:01]} 22. Nd4 {[%emt 0:00:02]} Qh4+ {[%emt 0:00:59]} 23. Kg1 {[%emt 0:00:01][%cal Bh1g1,Bg1f2,Bf2e3][%mdl 32]} Qg3 {[%emt 0:00:01]} 24. Qf2 {[%emt 0:01:05]} Qxf2+ {[%emt 0:00:02]} (24... Qf4 $5 {[%cal Rd7e5]}) 25. Kxf2 {[%emt 0:00:01]} Nc5 {[%emt 0:00:15]} 26. Ke3 {[%emt 0:00:44] Prevents Nd3.} Rce8 {[%emt 0:00:09]} 27. b4 {[%emt 0:00:11]} Na4 {[%emt 0:00:11]} 28. Rec1 {[%emt 0:00:27]} ({Much weaker is} 28. bxa5 Ra8 $11) 28... f6 {[%emt 0:00:58]} 29. f4 {[%emt 0:00:07] Threatening c4.} ({Reject} 29. bxa5 fxe5 30. Nxc6 bxc6 $17) 29... fxe5 {[%emt 0:00:02]} 30. fxe5 {[%emt 0:00:01]} Kf7 $2 {[%emt 0:00:03]} (30... Nb6 $11) 31. Bf1 {[%emt 0:00:06]} ({Don't do} 31. bxa5 $6 Nc5 $16) (31. c4 $18) 31... Bd7 $16 {[%emt 0:00:10]} 32. Rab1 {[%emt 0:00:10] White is more active.} (32. Nb5 $16) 32... axb4 $14 {[%emt 0:00:23]} 33. Rxb4 {[%emt 0:00:42] [#] Bb5 is the strong threat.} Nc5 {[%emt 0:00:09]} 34. Bd3 {[%emt 0:00:12] And now Bg6+ would win.} Ke7 {[%emt 0:00:08]} 35. Nb3 {[%emt 0:00:05]} Nxb3 {[%emt 0:00:11]} 36. Rxb3 {[%emt 0:00:01]} Bc6 {[%emt 0:00:01]} 37. Rcb1 {[%emt 0:00:08]} Ra8 {[%emt 0:00:04][%cal Od5d4]} 38. Bb5 {[%emt 0:00:18] aiming for Bxc6.} Rfd8 $2 {[%emt 0:00:38]} (38... Kf7 $14) 39. Bxc6 $18 {[%emt 0:00:05]} bxc6 {[%emt 0:00:01][%mdl 4096] Endgame KRR-KRR} 40. Rb7+ {[%emt 0:00:01]} Rd7 {[%emt 0:00:01] [#]} 41. Rxd7+ $1 {[%emt 0:00:01]} Kxd7 {KR-KR} 42. Rb7+ Ke8 {[%emt 0:00:05]} 43. Rxg7 {[%emt 0:00:05] White wants to mate with Rg8+.} Rxa3 {[%emt 0:00:01]} 44. Kd2 {[%emt 0:00:18]} ({White should play} 44. Rg6 $18) 44... Ra4 $11 {[%emt 0:00:02] The position is equal.} 45. g5 {[%emt 0:00:29]} hxg5 {[%emt 0:00:40]} 46. h6 {[%emt 0:00:01]} Kf8 {[%emt 0:00:01]} (46... Rh4 $2 47. h7 $18) 47. Rc7 {[%emt 0:00:28] Black must now prevent Rc8+.} Rh4 {[%emt 0:00:03]} 48. h7 {[%emt 0:00:06]} c5 {[%emt 0:00:14]} 49. Ke3 {[%emt 0:00:21]} Re4+ {[%emt 0:00:09]} 50. Kf3 {[%emt 0:00:09][%cal Rh7h8]} Rh4 {[%emt 0:00:01]} 51. Ke3 {[%emt 0:00:06]} Re4+ {[%emt 0:00:01] White really could win this.  Weighted Error Value: White=0.20 (precise) /Black=0.26 (precise)} 1/2-1/2